lending/lending_fUSD_20241229
["ID","MTS","AMOUNT","RATE_DAILY","PERIOD"]
[347006886,1735464632787,-200.0,0.000127,4]
[347006888,1735464632797,-534.71525244,0.000127,2]
[347006890,1735464632806,-150.0,0.00012709,2]
[347006892,1735464632815,-150.0,0.0001271,2]
[347006894,1735464632823,-150.0,0.00012712,2]
[347006896,1735464632832,-150.0,0.00012712,2]
[347006898,1735464632841,-150.0,0.00012715,2]
[347006900,1735464632850,-150.0,0.00012728,2]
[347006902,1735464632859,-150.0,0.00012729,2]
[347006904,1735464632868,-65.75862316,0.00012749,2]
[347006906,1735464632880,-84.24137684,0.00012749,2]
[347006908,1735464632889,-150.0,0.00012753,2]
[347006910,1735464632898,-150.0,0.00012756,2]
[347006913,1735464632908,-150.0,0.00012764,2]
[347006914,1735464632917,-150.0,0.00012771,2]
[347006916,1735464632926,-150.0,0.00012771,2]
[347006919,1735464632935,-1259.47357839,0.00012771,2]
[347006920,1735464632944,-284.44453713,0.00012773,2]
[347006952,1735464633590,391.87,9.792e-05,2]
[347006953,1735464637971,-391.87,0.00012056,2]
[347006954,1735464637981,-150.0,0.000125,2]
[347006955,1735464637991,-150.0,0.000126,2]
[347006956,1735464638001,-150.0,0.00012615,2]
[347006957,1735464638011,-150.0,0.00012697,2]
[347006958,1735464638020,-150.0,0.00012697,2]
[347006959,1735464638029,-150.0,0.00012712,2]
[347006960,1735464638039,-26224.09176997,0.00012773,2]
[347006961,1735464638050,-500.0,0.00012795,2]
[347006962,1735464638059,-500.0,0.00012795,2]
[347006963,1735464638068,-631.69,0.00012795,2]
[347006964,1735464638080,-582.33,0.00012795,2]
[347006965,1735464638089,-1792.78,0.00012795,2]
[347006966,1735464638099,-565.11,0.00012795,2]
[347006967,1735464638108,-500.0,0.00012795,2]
[347006968,1735464638119,-500.0,0.00012795,2]
[347006969,1735464638128,-1173.66,0.00012795,2]
[347006970,1735464638137,-500.0,0.00012795,2]
[347006971,1735464638146,-500.0,0.00012795,2]
[347006972,1735464638156,-109901.28206936,0.00012795,2]
[347006973,1735464638218,-324.726,0.00012795,2]
[347006974,1735464638289,-5762.23000962,0.00012795,2]
[347006975,1735464638349,-992.69,0.00012795,2]
[347007130,1735464640019,-500.0,0.00012795,2]
[347007132,1735464640028,-9.05848327,0.00012795,2]
[347007138,1735464640089,-15328.47783863,0.00012795,2]
[347007145,1735464640149,-19497.13685132,0.00012795,2]
[347007151,1735464640210,-550.7844546,0.00012795,2]
[347007433,1735464642990,-313.19484436,0.00012696,2]
[347007436,1735464643001,-544.07455564,0.00012696,2]
[347007438,1735464643011,-9163.74664436,0.00012795,2]
[347007443,1735464643052,-1060.69716,0.00012795,2]
[347007796,1735464646238,-500.0,0.00012795,2]
[347007798,1735464646248,-500.0,0.00012795,2]
[347007800,1735464646258,-1087.99,0.00012795,2]
[347007802,1735464646268,-32330.55547876,0.00012795,2]
[347007805,1735464646277,-3800.45402199,0.00012796,2]
[347007807,1735464646286,-500.0,0.00012796,2]
[347007808,1735464646295,-500.0,0.00012796,2]
[347007811,1735464646305,-500.0,0.00012796,2]
[347007813,1735464646314,-599.22,0.00012796,2]
[347007815,1735464646323,-676.7722262,0.00012796,2]
[347008123,1735464790935,173.02,0.00010137,2]
[347008124,1735464873582,648.83305783,0.00023,120]
[347008125,1735464942115,2000.0,0.00023,120]
[347008147,1735465551904,385.77,9.641e-05,2]
[347008152,1735465732073,500.0,0.00024709,120]
[347008544,1735465771718,221.12,0.00010137,2]
[347008554,1735465832128,-299.63,0.00011515,2]
[347008555,1735465832137,-1954.73,0.00011608,2]
[347008556,1735465832147,-161.50854531,0.00011611,2]
[347008557,1735465832235,-215.87145469,0.00011611,2]
[347008558,1735465832245,-2539.15,0.00011657,2]
[347008559,1735465832254,-1000.0,0.00011673,2]
[347008560,1735465832263,-837.69,0.00011686,2]
[347008561,1735465832272,-1500.0,0.0001171,2]
[347008562,1735465832281,-250.0,0.00011723,2]
[347008563,1735465832290,-167.25,0.00011727,2]
[347008564,1735465832299,-250.0,0.00011729,2]
[347008565,1735465832308,-20851.76,0.00011735,2]
[347008566,1735465832319,-652.1,0.00011747,2]
[347008567,1735465832328,-385.77,0.00011905,2]
[347008568,1735465832337,-450.0,0.00012,2]
[347008569,1735465832346,-167.36,0.00012072,2]
[347008570,1735465832355,-279.889,0.0001216,2]
[347008571,1735465832365,-4779.0,0.0001254,2]
[347008572,1735465832374,-150.0,0.00012555,2]
[347008573,1735465832384,-368.88,0.00012562,2]
[347008574,1735465832393,-370.21,0.00012566,2]
[347008575,1735465832403,-369.76,0.00012571,2]
[347008576,1735465832412,-1500.0,0.00012588,2]
[347008577,1735465832421,-1138.74419203,0.0001263,2]
[347008578,1735465832430,-150.0,0.00012632,2]
[347008579,1735465832439,-150.0,0.00012642,2]
[347008580,1735465832449,-150.0,0.0001266,2]
[347008581,1735465832458,-150.0,0.00012666,2]
[347008582,1735465832467,-150.0,0.00012674,2]
[347008583,1735465832480,-150.0,0.00012685,2]
[347008584,1735465832489,-150.0,0.00012686,2]
[347008585,1735465832499,-150.0,0.00012695,2]
[347008586,1735465832508,-513.47647136,0.000127,2]
[347008587,1735465832517,-1500.0,0.00012709,2]
[347008588,1735465832526,-152.31396339,0.00012711,2]
[347008589,1735465832535,-150.0,0.00012715,2]
[347008590,1735465832544,-1396.203,0.00012749,2]
[347008591,1735465832553,-150.0,0.00012757,2]
[347008592,1735465832562,-150.0,0.00012775,2]
[347008593,1735465832572,-150.0,0.00012786,2]
[347008594,1735465832581,-5200.0,0.0001279,2]
[347008595,1735465832590,-150.0,0.00012791,2]
[347008596,1735465832599,-150.0,0.00012791,2]
[347008597,1735465832608,-594.1,0.00012793,2]
[347008598,1735465832617,-573.74,0.00012793,2]
[347008599,1735465832626,-1197.13,0.00012793,2]
[347008600,1735465832635,-1111.19,0.00012793,2]
[347008601,1735465832644,-211.6030564,0.00012793,2]
[347008602,1735465832653,-195385.48836112,0.00012794,2]
[347008603,1735465832662,-2760.51617409,0.00012794,2]
[347008604,1735465832671,-1816.72,0.00012794,2]
[347008605,1735465832681,-516.19511972,0.00012794,2]
[347008606,1735465832690,-500.0,0.00012794,2]
[347008607,1735465832700,-500.0,0.00012794,2]
[347008608,1735465832710,-609.61,0.00012794,2]
[347008609,1735465832719,-589.31,0.00012794,2]
[347008610,1735465832728,-500.0,0.00012794,2]
[347008611,1735465832737,-500.0,0.00012794,2]
[347008612,1735465832747,-500.0,0.00012794,2]
[347008613,1735465832756,-598.7,0.00012794,2]
[347008614,1735465832765,-500.0,0.00012794,2]
[347008615,1735465832774,-500.0,0.00012794,2]
[347008616,1735465832784,-1424.15,0.00012794,2]
[347008617,1735465832793,-500.0,0.00012794,2]
[347008618,1735465832802,-1325.74,0.00012794,2]
[347008619,1735465832812,-1012.71,0.00012794,2]
[347008620,1735465832822,-1052.09,0.00012794,2]
[347008621,1735465832831,-1033.23,0.00012794,2]
[347008622,1735465832842,-679.83,0.00012794,2]
[347008623,1735465832851,-500.0,0.00012794,2]
[347008624,1735465832860,-528.22,0.00012794,2]
[347008625,1735465832870,-1051.8,0.00012794,2]
[347008626,1735465832879,-500.0,0.00012794,2]
[347008627,1735465832889,-500.0,0.00012794,2]
[347008628,1735465832899,-531.66,0.00012794,2]
[347008629,1735465832908,-500.0,0.00012794,2]
[347008630,1735465832917,-500.0,0.00012794,2]
[347008631,1735465832927,-2085.99,0.00012794,2]
[347008632,1735465832936,-736.02,0.00012794,2]
[347008633,1735465832945,-820.51,0.00012794,2]
[347008634,1735465832955,-500.0,0.00012794,2]
[347008635,1735465832964,-500.0,0.00012794,2]
[347008636,1735465832973,-675.71,0.00012794,2]
[347008637,1735465832982,-1236.8,0.00012794,2]
[347008638,1735465832992,-500.0,0.00012794,2]
[347008639,1735465833001,-1094.16,0.00012794,2]
[347008640,1735465833010,-500.0,0.00012794,2]
[347008641,1735465833019,-1170.06,0.00012794,2]
[347008642,1735465833028,-500.0,0.00012794,2]
[347008643,1735465833036,-500.0,0.00012794,2]
[347008644,1735465833046,-500.0,0.00012794,2]
[347008645,1735465833055,-500.0,0.00012794,2]
[347008646,1735465833063,-500.0,0.00012794,2]
[347008647,1735465833073,-500.0,0.00012794,2]
[347008648,1735465833082,-3127.13,0.00012794,2]
[347008649,1735465833091,-500.0,0.00012794,2]
[347008650,1735465833101,-500.0,0.00012794,2]
[347008651,1735465833110,-500.0,0.00012794,2]
[347008652,1735465833120,-500.0,0.00012794,2]
[347008653,1735465833129,-576.04944387,0.00012794,2]
[347008654,1735465833139,-500.0,0.00012794,2]
[347008655,1735465833148,-500.0,0.00012794,2]
[347008656,1735465833157,-656.62,0.00012794,2]
[347008657,1735465833167,-1203.12,0.00012794,2]
[347008658,1735465833176,-1131.77,0.00012794,2]
[347008659,1735465833185,-546.14,0.00012794,2]
[347008660,1735465833195,-645.18,0.00012794,2]
[347008661,1735465833204,-510.79,0.00012794,2]
[347008662,1735465833213,-746.28,0.00012794,2]
[347008663,1735465833222,-2225.89,0.00012794,2]
[347008664,1735465833232,-1238.37,0.00012794,2]
[347008665,1735465833241,-500.0,0.00012794,2]
[347008666,1735465833251,-1074.14,0.00012794,2]
[347008667,1735465833260,-500.0,0.00012794,2]
[347008668,1735465833270,-500.0,0.00012794,2]
[347008669,1735465833279,-500.0,0.00012794,2]
[347008670,1735465833288,-500.0,0.00012794,2]
[347008671,1735465833298,-1068.0,0.00012794,2]
[347008672,1735465833309,-796.23,0.00012794,2]
[347008673,1735465833319,-500.0,0.00012794,2]
[347008674,1735465833328,-500.0,0.00012794,2]
[347008675,1735465833338,-3597.94,0.00012794,2]
[347008676,1735465833347,-500.0,0.00012794,2]
[347008677,1735465833356,-500.0,0.00012794,2]
[347008678,1735465833366,-500.0,0.00012794,2]
[347008679,1735465833375,-500.0,0.00012794,2]
[347008680,1735465833384,-500.0,0.00012794,2]
[347008681,1735465833394,-500.0,0.00012794,2]
[347008682,1735465833403,-2446.95,0.00012794,2]
[347008683,1735465833412,-569.82,0.00012794,2]
[347008684,1735465833421,-500.0,0.00012794,2]
[347008685,1735465833430,-500.0,0.00012794,2]
[347008686,1735465833439,-1068.03,0.00012794,2]
[347008687,1735465833448,-500.0,0.00012794,2]
[347008688,1735465833458,-500.0,0.00012794,2]
[347008689,1735465833468,-500.0,0.00012794,2]
[347008690,1735465833481,-500.0,0.00012794,2]
[347008691,1735465833490,-500.0,0.00012794,2]
[347008692,1735465833499,-500.0,0.00012794,2]
[347008693,1735465833508,-1763.24,0.00012794,2]
[347008694,1735465833518,-530.72,0.00012794,2]
[347008695,1735465833527,-500.0,0.00012794,2]
[347008696,1735465833536,-506.09821563,0.00012794,2]
[347008697,1735465833546,-500.0,0.00012794,2]
[347008698,1735465833558,-630.71,0.00012794,2]
[347008699,1735465833567,-500.0,0.00012794,2]
[347008700,1735465833577,-569.36,0.00012794,2]
[347008701,1735465833587,-500.0,0.00012794,2]
[347008702,1735465833596,-500.0,0.00012794,2]
[347008703,1735465833605,-501.88602362,0.00012794,2]
[347008704,1735465833614,-500.0,0.00012794,2]
[347008705,1735465833624,-500.0,0.00012794,2]
[347008706,1735465833632,-500.0,0.00012794,2]
[347008707,1735465833642,-558.4,0.00012794,2]
[347008708,1735465833651,-500.0,0.00012794,2]
[347008709,1735465833660,-1030.18,0.00012794,2]
[347008710,1735465833669,-500.0,0.00012794,2]
[347008711,1735465833678,-500.0,0.00012794,2]
[347008712,1735465833688,-500.0,0.00012794,2]
[347008713,1735465833697,-150.0,0.00012794,2]
[347008714,1735465833706,-500.0,0.00012794,2]
[347008715,1735465833715,-500.0,0.00012794,2]
[347008716,1735465833724,-500.0,0.00012794,2]
[347008717,1735465833733,-500.0,0.00012794,2]
[347008718,1735465833743,-537.5,0.00012794,2]
[347008719,1735465833752,-500.0,0.00012794,2]
[347008720,1735465833761,-500.0,0.00012794,2]
[347008721,1735465833770,-500.0,0.00012794,2]
[347008722,1735465833780,-500.0,0.00012794,2]
[347008723,1735465833789,-11417.72,0.00012794,2]
[347008724,1735465833798,-500.0,0.00012794,2]
[347008725,1735465833808,-500.0,0.00012794,2]
[347008726,1735465833817,-500.0,0.00012794,2]
[347008727,1735465833827,-500.0,0.00012794,2]
[347008728,1735465833836,-172.67397961,0.00012794,2]
[347008729,1735465833846,-2969.47,0.00012794,2]
[347008730,1735465833855,-500.0,0.00012794,2]
[347008731,1735465833864,-151.0,0.00012794,2]
[347008732,1735465833874,-500.0,0.00012794,2]
[347008733,1735465833883,-1043.64,0.00012794,2]
[347008734,1735465833893,-500.0,0.00012794,2]
[347008735,1735465834109,-983.4,0.00012794,2]
[347008736,1735465834119,-500.0,0.00012794,2]
[347008737,1735465834128,-156.901988,0.00012794,2]
[347008738,1735465834137,-500.0,0.00012794,2]
[347008739,1735465834146,-500.0,0.00012794,2]
[347008740,1735465834155,-1422.013003,0.00012794,2]
[347008741,1735465834165,-779.04,0.00012794,2]
[347008742,1735465834175,-500.0,0.00012794,2]
[347008743,1735465834184,-154.477418,0.00012794,2]
[347008744,1735465834193,-1243.85,0.00012794,2]
[347008745,1735465834202,-500.0,0.00012794,2]
[347008746,1735465834211,-1387.81,0.00012794,2]
[347008747,1735465834220,-500.0,0.00012794,2]
[347008748,1735465834230,-500.0,0.00012794,2]
[347008749,1735465834239,-1243.392292,0.00012794,2]
[347008750,1735465834248,-500.0,0.00012794,2]
[347008751,1735465834257,-589.78,0.00012794,2]
[347008752,1735465834266,-4156.71,0.00012794,2]
[347008753,1735465834276,-500.0,0.00012794,2]
[347008754,1735465834284,-500.0,0.00012794,2]
[347008755,1735465834294,-500.0,0.00012794,2]
[347008756,1735465834303,-246.53537077,0.00012794,2]
[347008757,1735465834312,-500.0,0.00012794,2]
[347008758,1735465834322,-500.0,0.00012794,2]
[347008759,1735465834332,-500.0,0.00012794,2]
[347008760,1735465834341,-151.0,0.00012794,2]
[347008761,1735465834350,-629.7,0.00012794,2]
[347008762,1735465834359,-1981.64,0.00012794,2]
[347008763,1735465834369,-500.0,0.00012794,2]
[347008764,1735465834378,-500.0,0.00012794,2]
[347008765,1735465834388,-500.0,0.00012794,2]
[347008766,1735465834397,-500.0,0.00012794,2]
[347008767,1735465834406,-500.0,0.00012794,2]
[347008768,1735465834416,-500.0,0.00012794,2]
[347008769,1735465834425,-3576.64,0.00012794,2]
[347008770,1735465834434,-506.37,0.00012794,2]
[347008771,1735465834443,-500.0,0.00012794,2]
[347008772,1735465834452,-1744.73,0.00012794,2]
[347008773,1735465834461,-500.0,0.00012794,2]
[347008774,1735465834470,-500.0,0.00012794,2]
[347008775,1735465834482,-511.7,0.00012794,2]
[347008776,1735465834491,-4182.58,0.00012794,2]
[347008777,1735465834500,-500.0,0.00012794,2]
[347008778,1735465834509,-500.0,0.00012794,2]
[347008779,1735465834519,-880.02,0.00012794,2]
[347008780,1735465834527,-500.0,0.00012794,2]
[347008781,1735465834537,-529.69,0.00012794,2]
[347008782,1735465834546,-500.0,0.00012794,2]
[347008783,1735465834554,-500.0,0.00012794,2]
[347008784,1735465834563,-500.0,0.00012794,2]
[347008785,1735465834573,-500.0,0.00012794,2]
[347008786,1735465834582,-1226.47,0.00012794,2]
[347008787,1735465834591,-503.75106295,0.00012794,2]
[347008788,1735465834600,-500.0,0.00012794,2]
[347008789,1735465834609,-151.0,0.00012794,2]
[347008790,1735465834618,-500.0,0.00012794,2]
[347008791,1735465834627,-151.0,0.00012794,2]
[347008792,1735465834636,-500.0,0.00012794,2]
[347008793,1735465834645,-500.0,0.00012794,2]
[347008794,1735465834654,-500.0,0.00012794,2]
[347008795,1735465834663,-500.0,0.00012794,2]
[347008796,1735465834672,-500.0,0.00012794,2]
[347008797,1735465834680,-500.0,0.00012794,2]
[347008798,1735465834689,-500.0,0.00012794,2]
[347008799,1735465834698,-1649.31,0.00012794,2]
[347008800,1735465834707,-500.0,0.00012794,2]
[347008801,1735465834716,-500.0,0.00012794,2]
[347008802,1735465834725,-500.0,0.00012794,2]
[347008803,1735465834734,-500.0,0.00012794,2]
[347008804,1735465834743,-594.76,0.00012794,2]
[347008805,1735465834752,-1492.87,0.00012794,2]
[347008806,1735465834761,-151.0,0.00012794,2]
[347008807,1735465834770,-4358.3,0.00012794,2]
[347008808,1735465834779,-199.671375,0.00012794,2]
[347008809,1735465834787,-500.0,0.00012794,2]
[347008810,1735465834796,-500.0,0.00012794,2]
[347008811,1735465834805,-500.0,0.00012794,2]
[347008812,1735465834814,-507.41304173,0.00012794,2]
[347008813,1735465834824,-500.0,0.00012794,2]
[347008814,1735465834833,-500.0,0.00012794,2]
[347008815,1735465834842,-500.0,0.00012794,2]
[347008816,1735465834851,-500.0,0.00012794,2]
[347008817,1735465834860,-501.62339865,0.00012794,2]
[347008818,1735465834869,-500.0,0.00012794,2]
[347008819,1735465834878,-500.0,0.00012794,2]
[347008820,1735465834887,-672.55,0.00012794,2]
[347008821,1735465834896,-532.74,0.00012794,2]
[347008822,1735465834905,-1238.66,0.00012794,2]
[347008823,1735465834914,-500.0,0.00012794,2]
[347008824,1735465834923,-500.0,0.00012794,2]
[347008825,1735465834932,-501.92795179,0.00012794,2]
[347008826,1735465834941,-500.0,0.00012794,2]
[347008827,1735465834950,-500.0,0.00012794,2]
[347008828,1735465834959,-500.0,0.00012794,2]
[347008829,1735465834968,-4230.15,0.00012794,2]
[347008830,1735465834976,-500.0,0.00012794,2]
[347008831,1735465834985,-535.15,0.00012794,2]
[347008832,1735465834994,-2511.7,0.00012794,2]
[347008833,1735465835003,-500.0,0.00012794,2]
[347008834,1735465835012,-152.821398,0.00012794,2]
[347008835,1735465835021,-500.0,0.00012794,2]
[347008836,1735465835030,-500.0,0.00012794,2]
[347008837,1735465835039,-500.0,0.00012794,2]
[347008838,1735465835048,-4195.68,0.00012794,2]
[347008839,1735465835058,-151.0,0.00012794,2]
[347008840,1735465835068,-151.0,0.00012794,2]
[347008841,1735465835077,-500.0,0.00012794,2]
[347008842,1735465835087,-500.0,0.00012794,2]
[347008843,1735465835099,-510.61519213,0.00012794,2]
[347008844,1735465835108,-151.0,0.00012794,2]
[347008845,1735465835118,-151.0,0.00012794,2]
[347008846,1735465835127,-500.0,0.00012794,2]
[347008847,1735465835137,-4458.73,0.00012794,2]
[347008848,1735465835148,-500.0,0.00012794,2]
[347008849,1735465835159,-680.66,0.00012794,2]
[347008850,1735465835169,-661.85,0.00012794,2]
[347008851,1735465835180,-500.0,0.00012794,2]
[347008852,1735465835189,-500.0,0.00012794,2]
[347008853,1735465835199,-500.0,0.00012794,2]
[347008854,1735465835208,-500.88363576,0.00012794,2]
[347008855,1735465835218,-500.0,0.00012794,2]
[347008856,1735465835227,-151.0,0.00012794,2]
[347008857,1735465835236,-500.0,0.00012794,2]
[347008858,1735465835245,-600.64,0.00012794,2]
[347008859,1735465835255,-500.0,0.00012794,2]
[347008860,1735465835264,-500.0,0.00012794,2]
[347008861,1735465835273,-500.0,0.00012794,2]
[347008862,1735465835283,-500.0,0.00012794,2]
[347008863,1735465835293,-202.64284912,0.00012794,2]
[347008864,1735465835303,-501.17230328,0.00012794,2]
[347008865,1735465835313,-501.35753974,0.00012794,2]
[347008866,1735465835323,-8303.03,0.00012794,2]
[347008867,1735465835332,-500.0,0.00012794,2]
[347008868,1735465835343,-500.0,0.00012794,2]
[347008869,1735465835352,-151.0,0.00012794,2]
[347008870,1735465835362,-151.0,0.00012794,2]
[347008871,1735465835372,-1116.54,0.00012794,2]
[347008872,1735465835381,-151.0,0.00012794,2]
[347008873,1735465835390,-7132.79,0.00012794,2]
[347008874,1735465835400,-500.0,0.00012794,2]
[347008875,1735465835409,-500.0,0.00012794,2]
[347008876,1735465835419,-501.54528282,0.00012794,2]
[347008877,1735465835428,-500.0,0.00012794,2]
[347008878,1735465835438,-500.0,0.00012794,2]
[347008879,1735465835447,-500.0,0.00012794,2]
[347008880,1735465835456,-500.0,0.00012794,2]
[347008881,1735465835466,-151.0,0.00012794,2]
[347008882,1735465835476,-500.0,0.00012794,2]
[347008883,1735465835487,-500.0,0.00012794,2]
[347008884,1735465835496,-500.0,0.00012794,2]
[347008885,1735465835507,-500.0,0.00012794,2]
[347008886,1735465835516,-1361.83,0.00012794,2]
[347008887,1735465835527,-387.98251068,0.00012794,2]
[347008888,1735465835536,-500.0,0.00012794,2]
[347008889,1735465835545,-500.0,0.00012794,2]
[347008890,1735465835557,-500.0,0.00012794,2]
[347008891,1735465835567,-500.0,0.00012794,2]
[347008892,1735465835576,-60.35372586,0.00012794,2]
[347008893,1735465835627,-439.64627414,0.00012794,2]
[347008894,1735465835637,-500.0,0.00012794,2]
[347008895,1735465835646,-1172.57,0.00012794,2]
[347008896,1735465835656,-500.0,0.00012794,2]
[347008897,1735465835665,-500.0,0.00012794,2]
[347008898,1735465835674,-500.0,0.00012794,2]
[347008899,1735465835683,-500.0,0.00012794,2]
[347008900,1735465835692,-6492.37,0.00012794,2]
[347008901,1735465835702,-231.474847,0.00012794,2]
[347008902,1735465835712,-231.474847,0.00012794,2]
[347008903,1735465835722,-544.65,0.00012794,2]
[347008904,1735465835731,-231.474847,0.00012794,2]
[347008905,1735465835741,-498.76851932,0.00012794,2]
[347008906,1735465835787,-150.0,0.00012721,2]
[347008907,1735465835796,-94.28148068,0.00012794,2]
[347008908,1735465835806,-500.0,0.00012794,2]
[347008909,1735465835815,-500.0,0.00012794,2]
[347008910,1735465835825,-500.0,0.00012794,2]
[347008911,1735465835835,-560.63,0.00012794,2]
[347008912,1735465835847,-231.474847,0.00012794,2]
[347008913,1735465835857,-231.474847,0.00012794,2]
[347008914,1735465835867,-231.474847,0.00012794,2]
[347008915,1735465835877,-1567.7,0.00012794,2]
[347008916,1735465835887,-2680.42,0.00012794,2]
[347008917,1735465835897,-500.0,0.00012794,2]
[347008918,1735465835906,-1913.41,0.00012794,2]
[347008919,1735465835915,-500.0,0.00012794,2]
[347008920,1735465835925,-500.0,0.00012794,2]
[347008921,1735465835934,-500.0,0.00012794,2]
[347008922,1735465835944,-500.0,0.00012794,2]
[347008923,1735465835953,-500.0,0.00012794,2]
[347008924,1735465835962,-500.0,0.00012794,2]
[347008925,1735465835971,-500.0,0.00012794,2]
[347008926,1735465835981,-500.0,0.00012794,2]
[347008927,1735465835990,-4621.31,0.00012794,2]
[347008928,1735465836000,-500.0,0.00012794,2]
[347008929,1735465836009,-501.4425418,0.00012794,2]
[347008930,1735465836019,-500.0,0.00012794,2]
[347008931,1735465836028,-500.0,0.00012794,2]
[347008932,1735465836037,-1601.37,0.00012794,2]
[347008933,1735465836046,-500.0,0.00012794,2]
[347008934,1735465836056,-500.0,0.00012794,2]
[347008935,1735465836065,-500.0,0.00012794,2]
[347008936,1735465836075,-547.46,0.00012794,2]
[347008937,1735465836084,-500.0,0.00012794,2]
[347008938,1735465836094,-500.0,0.00012794,2]
[347008939,1735465836103,-500.0,0.00012794,2]
[347008940,1735465836112,-504.21690968,0.00012794,2]
[347008941,1735465836121,-224.26209054,0.00012794,2]
[347008942,1735465836130,-500.0,0.00012794,2]
[347008943,1735465836139,-500.0,0.00012794,2]
[347008944,1735465836149,-500.0,0.00012794,2]
[347008945,1735465836158,-715.76,0.00012794,2]
[347008946,1735465836167,-500.0,0.00012794,2]
[347008947,1735465836178,-500.0,0.00012794,2]
[347008948,1735465836187,-500.0,0.00012794,2]
[347008949,1735465836196,-151.0,0.00012794,2]
[347008950,1735465836206,-548.98,0.00012794,2]
[347008951,1735465836216,-151.0,0.00012794,2]
[347008952,1735465836225,-151.0,0.00012794,2]
[347008953,1735465836235,-151.541379,0.00012794,2]
[347008954,1735465836244,-151.0,0.00012794,2]
[347008955,1735465836253,-151.0,0.00012794,2]
[347008956,1735465836263,-500.0,0.00012794,2]
[347008957,1735465836272,-151.0,0.00012794,2]
[347008958,1735465836281,-151.0,0.00012794,2]
[347008959,1735465836291,-500.0,0.00012794,2]
[347008960,1735465836300,-500.0,0.00012794,2]
[347008961,1735465836309,-476.5881873,0.00012794,2]
[347008962,1735465836900,-903.4,0.00012795,7]
[347008963,1735465838188,-150.0,0.00012715,2]
[347008964,1735465838198,-54.9318127,0.00012794,2]
[347008965,1735465838207,-162.0582525,0.00012794,2]
[347008966,1735465838218,-337.9417475,0.00012794,2]
[347008967,1735465838228,-307.77944559,0.00012794,2]
[347008968,1735465838245,-192.22055441,0.00012794,2]
[347008969,1735465838255,-193.65182686,0.00012794,2]
[347008970,1735465838278,-500.0,0.00012793,2]
[347008971,1735465838288,-243.08723514,0.00012794,2]
[347008972,1735465838297,-436.739062,0.00012794,2]
[347008973,1735465838307,-336.36882458,0.00012794,2]
[347008974,1735465838319,-100.37023742,0.00012794,2]
[347008975,1735465838329,-436.739062,0.00012794,2]
[347008976,1735465838338,-568.32,0.00012794,2]
[347008977,1735465838347,-500.0,0.00012794,2]
[347008978,1735465838357,-500.0,0.00012794,2]
[347008979,1735465838366,-500.0,0.00012794,2]
[347008980,1735465838375,-500.0,0.00012794,2]
[347008981,1735465838385,-436.739062,0.00012794,2]
[347008982,1735465838394,-500.0,0.00012794,2]
[347008983,1735465838404,-436.739062,0.00012794,2]
[347008984,1735465838413,-436.739062,0.00012794,2]
[347008985,1735465838422,-436.739062,0.00012794,2]
[347008986,1735465838431,-500.0,0.00012794,2]